[Event "GrandPrix_30.05"]
[Site "Chess.com"]
[Date "2020.05.30"]
[Round "1"]
[White "Anton_Demchenko"]
[Black "tacticthunder"]
[Result "1/2-1/2"]
[WhiteElo "2619"]
[BlackElo "2201"]
[TimeControl "600+2"]
[EndTime "8:25:07 PDT"]
[Termination "Game drawn by repetition"]

1. d4 {[%clk 0:09:57.1]} 1... Nf6 {[%clk 0:09:59.9]} 2. Nf3 {[%clk 0:09:54.4]}
2... e6 {[%clk 0:09:56.5]} 3. Bf4 {[%clk 0:09:54]} 3... c5 {[%clk 0:09:53.5]} 4.
e3 {[%clk 0:09:54.5]} 4... Nc6 {[%clk 0:09:51.7]} 5. Nbd2 {[%clk 0:09:53.7]}
5... d5 {[%clk 0:09:51.9]} 6. c3 {[%clk 0:09:54.4]} 6... Bd6 {[%clk 0:09:52.1]}
7. Bg3 {[%clk 0:09:54.4]} 7... O-O {[%clk 0:09:52.1]} 8. Bd3 {[%clk 0:09:55.2]}
8... Qe7 {[%clk 0:09:47.5]} 9. Ne5 {[%clk 0:09:54.6]} 9... Bxe5 {[%clk
0:09:46.6]} 10. dxe5 {[%clk 0:09:55.3]} 10... Nd7 {[%clk 0:09:47.5]} 11. Nf3
{[%clk 0:09:52.4]} 11... f6 {[%clk 0:09:39.3]} 12. exf6 {[%clk 0:09:53.1]} 12...
Nxf6 {[%clk 0:09:39.6]} 13. Ne5 {[%clk 0:09:15.6]} 13... Nxe5 {[%clk 0:09:16.7]}
14. Bxe5 {[%clk 0:09:17.5]} 14... b6 {[%clk 0:08:54.3]} 15. O-O {[%clk 0:09:15]}
15... Bb7 {[%clk 0:08:53.1]} 16. c4 {[%clk 0:09:06]} 16... Rad8 {[%clk 0:08:29]}
17. Qe2 {[%clk 0:08:58.5]} 17... Ne4 {[%clk 0:07:12.8]} 18. f3 {[%clk 0:07:07]}
18... Ng5 {[%clk 0:07:03.2]} 19. b3 {[%clk 0:06:33.8]} 19... Nf7 {[%clk
0:06:28.2]} 20. Bg3 {[%clk 0:06:02.7]} 20... Nd6 {[%clk 0:06:14.6]} 21. Rae1
{[%clk 0:04:41.6]} 21... Nf5 {[%clk 0:04:50.9]} 22. Bf2 {[%clk 0:04:40.9]} 22...
Nh4 {[%clk 0:03:45.5]} 23. e4 {[%clk 0:03:51.6]} 23... d4 {[%clk 0:03:05.5]} 24.
Bxh4 {[%clk 0:03:44.3]} 24... Qxh4 {[%clk 0:03:07.4]} 25. g3 {[%clk 0:03:45.8]}
25... Qe7 {[%clk 0:02:49.6]} 26. f4 {[%clk 0:03:36.9]} 26... e5 {[%clk
0:02:31.9]} 27. f5 {[%clk 0:03:35.4]} 27... Rd6 {[%clk 0:02:29.3]} 28. Rf2
{[%clk 0:02:58.1]} 28... g6 {[%clk 0:02:26.4]} 29. Ref1 {[%clk 0:02:55.3]} 29...
Rdf6 {[%clk 0:02:20.8]} 30. Qg4 {[%clk 0:02:40.7]} 30... Qg7 {[%clk 0:01:40.1]}
31. fxg6 {[%clk 0:02:17.3]} 31... hxg6 {[%clk 0:01:42]} 32. Qg5 {[%clk
0:01:26.6]} 32... Rxf2 {[%clk 0:01:29.7]} 33. Rxf2 {[%clk 0:01:28.5]} 33... Rxf2
{[%clk 0:01:29.8]} 34. Kxf2 {[%clk 0:01:30.4]} 34... Kf7 {[%clk 0:01:07.3]} 35.
Ke2 {[%clk 0:01:31.5]} 35... Qf6 {[%clk 0:01:06.2]} 36. Qg4 {[%clk 0:01:25.4]}
36... Ke7 {[%clk 0:01:06.6]} 37. h4 {[%clk 0:01:24.7]} 37... Bc6 {[%clk
0:00:41.4]} 38. Qf3 {[%clk 0:00:23.5]} 38... Bd7 {[%clk 0:00:27.6]} 39. Qxf6+
{[%clk 0:00:06.9]} 39... Kxf6 {[%clk 0:00:29.5]} 40. Kf3 {[%clk 0:00:07]} 40...
g5 {[%clk 0:00:21.3]} 41. h5 {[%clk 0:00:03.6]} 41... g4+ {[%clk 0:00:14.9]} 42.
Kf2 {[%clk 0:00:05.1]} 42... Kg5 {[%clk 0:00:15.6]} 43. Ke2 {[%clk 0:00:06.6]}
43... Kxh5 {[%clk 0:00:16.3]} 44. Bc2 {[%clk 0:00:07.6]} 44... Kg5 {[%clk
0:00:16.9]} 45. Kd3 {[%clk 0:00:09.1]} 45... Kf6 {[%clk 0:00:17.7]} 46. Bd1
{[%clk 0:00:10.1]} 46... a6 {[%clk 0:00:15.8]} 47. a4 {[%clk 0:00:09.6]} 47...
b5 {[%clk 0:00:12.5]} 48. a5 {[%clk 0:00:10.3]} 48... Kg5 {[%clk 0:00:10.4]} 49.
Bc2 {[%clk 0:00:11.2]} 49... Bc6 {[%clk 0:00:08.9]} 50. Bd1 {[%clk 0:00:12.4]}
50... Be8 {[%clk 0:00:10.5]} 51. Bc2 {[%clk 0:00:13.4]} 51... Bd7 {[%clk
0:00:11.9]} 52. Bd1 {[%clk 0:00:14.8]} 52... Bc6 {[%clk 0:00:11.3]} 53. Bc2
{[%clk 0:00:16.2]} 53... Kf6 {[%clk 0:00:09.1]} 54. Bd1 {[%clk 0:00:17.2]} 54...
Bd7 {[%clk 0:00:10.7]} 55. Bc2 {[%clk 0:00:18.3]} 55... Ke7 {[%clk 0:00:11.9]}
56. Bd1 {[%clk 0:00:19.6]} 56... Kd6 {[%clk 0:00:07.5]} 57. Bc2 {[%clk
0:00:20.9]} 57... bxc4+ {[%clk 0:00:08.4]} 58. bxc4 {[%clk 0:00:21.9]} 58... Be6
{[%clk 0:00:08.2]} 59. Bd1 {[%clk 0:00:23.2]} 59... Ke7 {[%clk 0:00:09.1]} 60.
Bc2 {[%clk 0:00:24.6]} 60... Kf6 {[%clk 0:00:10.3]} 61. Ba4 {[%clk 0:00:25.7]}
61... Ke7 {[%clk 0:00:09.6]} 62. Bc6 {[%clk 0:00:14.6]} 62... Bc8 {[%clk
0:00:08.1]} 63. Ba4 {[%clk 0:00:13.7]} 63... Kd6 {[%clk 0:00:06.1]} 64. Bd1
{[%clk 0:00:14.5]} 64... Bd7 {[%clk 0:00:07]} 65. Bc2 {[%clk 0:00:15.9]} 65...
Kc7 {[%clk 0:00:07.9]} 66. Bb3 {[%clk 0:00:17.4]} 66... Kd6 {[%clk 0:00:08.4]}
67. Bd1 {[%clk 0:00:18.5]} 67... Kc7 {[%clk 0:00:09]} 68. Bc2 {[%clk 0:00:20.1]}
68... Kd6 {[%clk 0:00:09.6]} 69. Bd1 {[%clk 0:00:21.6]} 69... Ke7 {[%clk
0:00:11.1]} 70. Bb3 {[%clk 0:00:23.1]} 70... Kf6 {[%clk 0:00:10.7]} 71. Bc2
{[%clk 0:00:24.6]} 71... Ke7 {[%clk 0:00:10.6]} 72. Bd1 {[%clk 0:00:26.1]} 72...
Kd6 {[%clk 0:00:11.6]} 73. Bc2 {[%clk 0:00:27.6]} 1/2-1/2

[Event "GrandPrix_30.05"]
[Site "Chess.com"]
[Date "2020.05.30"]
[Round "1"]
[White "Keks2017"]
[Black "am00ss00"]
[Result "1-0"]
[WhiteElo "2386"]
[BlackElo "2056"]
[TimeControl "600+2"]
[EndTime "8:25:18 PDT"]
[Termination "Keks2017 won by resignation"]

1. e4 {[%clk 0:09:57.1]} 1... d6 {[%clk 0:09:57.3]} 2. d4 {[%clk 0:09:57.3]}
2... Nf6 {[%clk 0:09:57.6]} 3. Nc3 {[%clk 0:09:57.3]} 3... g6 {[%clk 0:09:58.3]}
4. Be3 {[%clk 0:09:54.5]} 4... Nbd7 {[%clk 0:09:58.3]} 5. f3 {[%clk 0:09:53.8]}
5... c6 {[%clk 0:09:59.2]} 6. Qd2 {[%clk 0:09:53.2]} 6... b5 {[%clk 0:10:00]} 7.
g4 {[%clk 0:09:53.4]} 7... Nb6 {[%clk 0:10:00.2]} 8. h4 {[%clk 0:09:43.3]} 8...
h5 {[%clk 0:09:58.6]} 9. g5 {[%clk 0:09:44]} 9... Nfd7 {[%clk 0:09:59.4]} 10.
Nh3 {[%clk 0:09:44]} 10... Bg7 {[%clk 0:09:59.2]} 11. Nf2 {[%clk 0:09:44.7]}
11... b4 {[%clk 0:09:52.5]} 12. Ncd1 {[%clk 0:09:44.6]} 12... c5 {[%clk
0:09:49.4]} 13. c3 {[%clk 0:09:42.1]} 13... bxc3 {[%clk 0:09:48.4]} 14. bxc3
{[%clk 0:09:42.8]} 14... O-O {[%clk 0:09:47.2]} 15. Be2 {[%clk 0:09:29.5]} 15...
a5 {[%clk 0:09:23.5]} 16. O-O {[%clk 0:09:24.8]} 16... Ba6 {[%clk 0:09:17.3]}
17. Bxa6 {[%clk 0:09:24.1]} 17... Rxa6 {[%clk 0:09:19.2]} 18. Qe2 {[%clk
0:09:21.1]} 18... Ra7 {[%clk 0:09:16.9]} 19. Rb1 {[%clk 0:09:21]} 19... Qc7
{[%clk 0:09:14.1]} 20. f4 {[%clk 0:08:55.6]} 20... Rc8 {[%clk 0:09:03.6]} 21. d5
{[%clk 0:08:52.6]} 21... e6 {[%clk 0:08:32.8]} 22. c4 {[%clk 0:08:42.1]} 22...
exd5 {[%clk 0:08:28.4]} 23. exd5 {[%clk 0:08:41.9]} 23... Re8 {[%clk 0:08:25.8]}
24. Qd3 {[%clk 0:08:39.4]} 24... Nf8 {[%clk 0:07:50.1]} 25. Bd2 {[%clk
0:06:39.5]} 25... Na4 {[%clk 0:07:12.4]} 26. Ne4 {[%clk 0:06:26.7]} 26... Qd7
{[%clk 0:06:39]} 27. Ndf2 {[%clk 0:06:22.6]} 27... Bd4 {[%clk 0:06:23.5]} 28.
Kg2 {[%clk 0:06:21.8]} 28... Nb2 {[%clk 0:05:53.6]} 29. Qc2 {[%clk 0:06:13.1]}
29... Rb7 {[%clk 0:05:47.9]} 30. Rfe1 {[%clk 0:05:59.4]} 30... Reb8 {[%clk
0:05:35.1]} 31. Bc3 {[%clk 0:05:39.3]} 31... Qf5 {[%clk 0:05:06.5]} 32. Bxd4
{[%clk 0:04:50.9]} 32... cxd4 {[%clk 0:04:54.9]} 33. Nf6+ {[%clk 0:04:36.9]}
33... Kh8 {[%clk 0:04:45.1]} 34. Qxf5 {[%clk 0:04:06.9]} 34... gxf5 {[%clk
0:04:47]} 35. Re8 {[%clk 0:04:00]} 35... a4 {[%clk 0:04:06.9]} 36. Nd3 {[%clk
0:01:43.7]} 36... a3 {[%clk 0:03:41.7]} 37. c5 {[%clk 0:01:39.6]} 37... Rxe8
{[%clk 0:03:02.9]} 38. Nxe8 {[%clk 0:01:37.4]} 38... dxc5 {[%clk 0:02:51.9]} 39.
Nxc5 {[%clk 0:01:31.1]} 39... Re7 {[%clk 0:02:42.4]} 40. Nf6 {[%clk 0:01:18]}
40... d3 {[%clk 0:02:34.4]} 41. d6 {[%clk 0:01:06.1]} 41... Re2+ {[%clk
0:02:13.7]} 42. Kf3 {[%clk 0:01:06.3]} 42... Rc2 {[%clk 0:01:52.3]} 43. Nxd3
{[%clk 0:00:56.8]} 43... Rc3 {[%clk 0:01:25.4]} 44. Re1 {[%clk 0:00:48.8]} 44...
Rxd3+ {[%clk 0:01:24]} 45. Kg2 {[%clk 0:00:47.4]} 45... Rd2+ {[%clk 0:01:22.8]}
46. Kg3 {[%clk 0:00:45.8]} 46... Rd3+ {[%clk 0:01:23.2]} 47. Kg2 {[%clk
0:00:45.8]} 47... Rxd6 {[%clk 0:01:21.7]} 48. Re8 {[%clk 0:00:44.7]} 48... Kg7
{[%clk 0:01:18.9]} 49. Nxh5+ {[%clk 0:00:43.8]} 49... Kg6 {[%clk 0:01:18.6]} 50.
Nf6 {[%clk 0:00:42.7]} 50... Rxf6 {[%clk 0:00:56.3]} 51. gxf6 {[%clk 0:00:35.2]}
51... Ne6 {[%clk 0:00:56.2]} 52. Ra8 {[%clk 0:00:30.6]} 52... Nc4 {[%clk
0:00:55.9]} 53. Ra4 {[%clk 0:00:23.8]} 53... Ne3+ {[%clk 0:00:48.1]} 54. Kg3
{[%clk 0:00:16.5]} 54... Nc2 {[%clk 0:00:45.9]} 55. Rc4 {[%clk 0:00:16.7]} 55...
Ne3 {[%clk 0:00:39.2]} 56. Rc3 {[%clk 0:00:14.1]} 56... Nf1+ {[%clk 0:00:31.3]}
57. Kf2 {[%clk 0:00:12.2]} 57... Nd2 {[%clk 0:00:29]} 58. Rxa3 {[%clk
0:00:12.5]} 58... Nxf4 {[%clk 0:00:27.9]} 59. Ra8 {[%clk 0:00:10.2]} 59... Ne4+
{[%clk 0:00:25.2]} 60. Ke3 {[%clk 0:00:10]} 60... Nd5+ {[%clk 0:00:24.5]} 61.
Kd4 {[%clk 0:00:10.9]} 61... Ndxf6 {[%clk 0:00:23.2]} 62. a4 {[%clk 0:00:10.7]}
62... f4 {[%clk 0:00:22.2]} 63. a5 {[%clk 0:00:10]} 63... f3 {[%clk 0:00:22.6]}
64. Rb8 {[%clk 0:00:08.5]} 64... f2 {[%clk 0:00:22]} 65. Rb1 {[%clk 0:00:08.8]}
65... Ng3 {[%clk 0:00:20.1]} 66. a6 {[%clk 0:00:08.6]} 66... Nd7 {[%clk
0:00:17.5]} 67. a7 {[%clk 0:00:08.9]} 67... Nb6 {[%clk 0:00:16.8]} 68. Rxb6+
{[%clk 0:00:09.3]} 68... f6 {[%clk 0:00:14.1]} 69. Rb1 {[%clk 0:00:09.4]} 69...
f1=Q {[%clk 0:00:12.2]} 70. Rxf1 {[%clk 0:00:09.2]} 70... Nxf1 {[%clk
0:00:14.1]} 71. a8=Q {[%clk 0:00:09.9]} 71... Ng3 {[%clk 0:00:14.8]} 72. Qg2
{[%clk 0:00:10.2]} 1-0

[Event "GrandPrix_30.05"]
[Site "Chess.com"]
[Date "2020.05.30"]
[Round "1"]
[White "GM_Levan_Pantsulaia"]
[Black "Haykos"]
[Result "1/2-1/2"]
[WhiteElo "2600"]
[BlackElo "2208"]
[TimeControl "600+2"]
[EndTime "8:25:22 PDT"]
[Termination "Game drawn - insufficient material"]

1. Nf3 {[%clk 0:09:57]} 1... Nf6 {[%clk 0:09:56.6]} 2. g3 {[%clk 0:09:57.1]}
2... d5 {[%clk 0:09:53.2]} 3. Bg2 {[%clk 0:09:56.6]} 3... c6 {[%clk 0:09:52.2]}
4. c4 {[%clk 0:09:56.8]} 4... dxc4 {[%clk 0:09:20.4]} 5. O-O {[%clk 0:09:55]}
5... Nbd7 {[%clk 0:09:14.7]} 6. Qc2 {[%clk 0:09:54.5]} 6... Nb6 {[%clk
0:09:14.6]} 7. a4 {[%clk 0:09:55.6]} 7... a5 {[%clk 0:09:07]} 8. Na3 {[%clk
0:09:56.5]} 8... Be6 {[%clk 0:09:08.1]} 9. Ne5 {[%clk 0:09:53.8]} 9... Bd5
{[%clk 0:09:07.7]} 10. e4 {[%clk 0:09:53.1]} 10... Be6 {[%clk 0:09:07.8]} 11.
Naxc4 {[%clk 0:09:52.3]} 11... Nxc4 {[%clk 0:08:54.2]} 12. Nxc4 {[%clk
0:09:54.2]} 12... Qd4 {[%clk 0:08:42.1]} 13. d3 {[%clk 0:08:39.4]} 13... Bxc4
{[%clk 0:07:25.9]} 14. dxc4 {[%clk 0:08:41.2]} 14... e5 {[%clk 0:07:27.6]} 15.
Be3 {[%clk 0:08:21.3]} 15... Qd7 {[%clk 0:07:28]} 16. Rad1 {[%clk 0:08:03.8]}
16... Qc7 {[%clk 0:07:21.6]} 17. Bh3 {[%clk 0:07:58]} 17... h6 {[%clk
0:07:10.1]} 18. Rd3 {[%clk 0:06:40.4]} 18... Be7 {[%clk 0:06:17.1]} 19. Rfd1
{[%clk 0:06:38.5]} 19... Rd8 {[%clk 0:06:13.1]} 20. Rxd8+ {[%clk 0:05:09.9]}
20... Bxd8 {[%clk 0:06:13.6]} 21. Qb3 {[%clk 0:05:05.9]} 21... O-O {[%clk
0:05:02.6]} 22. f3 {[%clk 0:05:04.4]} 22... Re8 {[%clk 0:03:54.1]} 23. Kg2
{[%clk 0:05:00.1]} 23... b6 {[%clk 0:02:38.7]} 24. c5 {[%clk 0:04:51.1]} 24...
bxc5 {[%clk 0:02:39.7]} 25. Bxc5 {[%clk 0:04:52.5]} 25... Be7 {[%clk 0:02:39.1]}
26. Qb6 {[%clk 0:04:15.6]} 26... Qxb6 {[%clk 0:02:09.4]} 27. Bxb6 {[%clk
0:04:17.5]} 27... Rb8 {[%clk 0:01:52.9]} 28. Bxa5 {[%clk 0:04:15.6]} 28... Rxb2+
{[%clk 0:01:38.3]} 29. Rd2 {[%clk 0:04:16.7]} 29... Rb8 {[%clk 0:01:29.2]} 30.
Bc7 {[%clk 0:03:53.3]} 30... Ra8 {[%clk 0:01:30.1]} 31. Ra2 {[%clk 0:03:53.4]}
31... c5 {[%clk 0:01:05]} 32. Bxe5 {[%clk 0:03:49.1]} 32... c4 {[%clk
0:01:06.4]} 33. a5 {[%clk 0:02:54.5]} 33... Bb4 {[%clk 0:01:02.6]} 34. a6 {[%clk
0:02:55.5]} 34... c3 {[%clk 0:01:03.9]} 35. a7 {[%clk 0:02:56.1]} 35... Bc5
{[%clk 0:00:55.2]} 36. Bb8 {[%clk 0:02:34.5]} 36... Bxa7 {[%clk 0:00:54]} 37.
Bf4 {[%clk 0:01:45.5]} 37... c2 {[%clk 0:00:49]} 38. Bc1 {[%clk 0:01:46.3]}
38... Kh7 {[%clk 0:00:14.2]} 39. Kf1 {[%clk 0:01:24.6]} 39... Rd8 {[%clk
0:00:13.9]} 40. Rxc2 {[%clk 0:01:16.8]} 40... Rd1+ {[%clk 0:00:14.7]} 41. Ke2
{[%clk 0:01:18.2]} 41... Rh1 {[%clk 0:00:15.3]} 42. Kd3 {[%clk 0:01:18.5]} 42...
Bg1 {[%clk 0:00:15.3]} 43. Bb2 {[%clk 0:00:34.7]} 43... Rxh2 {[%clk 0:00:14]}
44. Bf5+ {[%clk 0:00:35.4]} 44... g6 {[%clk 0:00:14]} 45. Bxf6 {[%clk
0:00:33.8]} 45... Rxc2 {[%clk 0:00:12.8]} 46. Kxc2 {[%clk 0:00:34.8]} 46... gxf5
{[%clk 0:00:13.8]} 47. exf5 {[%clk 0:00:36.5]} 47... Bc5 {[%clk 0:00:14]} 48. g4
{[%clk 0:00:34.6]} 48... h5 {[%clk 0:00:14.1]} 49. Kd3 {[%clk 0:00:24.5]} 49...
hxg4 {[%clk 0:00:15.1]} 50. fxg4 {[%clk 0:00:26.4]} 50... Kg8 {[%clk 0:00:16.4]}
51. Ke4 {[%clk 0:00:26.9]} 51... Bd6 {[%clk 0:00:17.2]} 52. g5 {[%clk
0:00:24.8]} 52... Bb4 {[%clk 0:00:16.7]} 53. Kd5 {[%clk 0:00:25.2]} 53... Bd2
{[%clk 0:00:17.4]} 54. Kd6 {[%clk 0:00:25.5]} 54... Bf4+ {[%clk 0:00:17.7]} 55.
Ke7 {[%clk 0:00:26.2]} 55... Bd2 {[%clk 0:00:18.7]} 56. Ke8 {[%clk 0:00:27.2]}
56... Be3 {[%clk 0:00:19]} 57. Be7 {[%clk 0:00:26.1]} 57... Bd2 {[%clk
0:00:18.9]} 58. g6 {[%clk 0:00:25.5]} 58... fxg6 {[%clk 0:00:07.7]} 59. f6
{[%clk 0:00:26.3]} 59... Bh6 {[%clk 0:00:08.5]} 60. f7+ {[%clk 0:00:24.4]} 60...
Kh7 {[%clk 0:00:09]} 61. Bg5 {[%clk 0:00:07.7]} 61... Bg7 {[%clk 0:00:09.3]} 62.
Kd7 {[%clk 0:00:03.3]} 62... Bf8 {[%clk 0:00:09.2]} 63. Ke6 {[%clk 0:00:04.5]}
63... Bg7 {[%clk 0:00:07.3]} 64. Be7 {[%clk 0:00:05.2]} 64... g5 {[%clk
0:00:06.3]} 65. Bxg5 {[%clk 0:00:06.6]} 65... Kg6 {[%clk 0:00:07.8]} 66. Be7
{[%clk 0:00:08.1]} 66... Bh6 {[%clk 0:00:09.3]} 67. Bd6 {[%clk 0:00:09.5]} 67...
Bg7 {[%clk 0:00:10.7]} 68. Bf4 {[%clk 0:00:10.8]} 68... Bf8 {[%clk 0:00:11.9]}
69. Bd6 {[%clk 0:00:10.9]} 69... Bxd6 {[%clk 0:00:12.7]} 70. Kxd6 {[%clk
0:00:12.5]} 70... Kxf7 {[%clk 0:00:14.3]} 1/2-1/2

[Event "GrandPrix_30.05"]
[Site "Chess.com"]
[Date "2020.05.30"]
[Round "1"]
[White "Hrant_ChessMood"]
[Black "lelajavakhishvili"]
[Result "1-0"]
[WhiteElo "2859"]
[BlackElo "2238"]
[TimeControl "600+2"]
[EndTime "8:25:32 PDT"]
[Termination "Hrant_ChessMood won by resignation"]

1. d4 {[%clk 0:09:55.1]} 1... Nf6 {[%clk 0:09:59.5]} 2. c4 {[%clk 0:09:55.4]}
2... e6 {[%clk 0:09:59.7]} 3. Nf3 {[%clk 0:09:52.3]} 3... b6 {[%clk 0:10:00]} 4.
g3 {[%clk 0:09:47.6]} 4... Bb7 {[%clk 0:09:53.2]} 5. Bg2 {[%clk 0:09:46.5]} 5...
Be7 {[%clk 0:09:53.8]} 6. O-O {[%clk 0:09:47.4]} 6... O-O {[%clk 0:09:54.8]} 7.
Nc3 {[%clk 0:09:49]} 7... Ne4 {[%clk 0:09:54.7]} 8. Bd2 {[%clk 0:09:50.4]} 8...
d6 {[%clk 0:09:49.1]} 9. Re1 {[%clk 0:09:27]} 9... Nd7 {[%clk 0:09:34.7]} 10.
Qc2 {[%clk 0:09:16.2]} 10... Nxd2 {[%clk 0:09:35.1]} 11. Nxd2 {[%clk 0:09:08.2]}
11... Bxg2 {[%clk 0:09:29.5]} 12. Kxg2 {[%clk 0:09:10.1]} 12... Bf6 {[%clk
0:09:02.1]} 13. Nf3 {[%clk 0:08:50.9]} 13... g6 {[%clk 0:08:52.3]} 14. Rad1
{[%clk 0:08:46.9]} 14... Bg7 {[%clk 0:08:50.5]} 15. h4 {[%clk 0:08:11.3]} 15...
h6 {[%clk 0:08:38.1]} 16. e4 {[%clk 0:07:39.1]} 16... Qe7 {[%clk 0:07:59.6]} 17.
Ne2 {[%clk 0:06:24]} 17... c5 {[%clk 0:07:38.9]} 18. b3 {[%clk 0:05:52.7]} 18...
a6 {[%clk 0:07:22.5]} 19. a4 {[%clk 0:05:39.4]} 19... cxd4 {[%clk 0:07:13.6]}
20. Nexd4 {[%clk 0:05:30.4]} 20... Rac8 {[%clk 0:07:13.3]} 21. Qb1 {[%clk
0:05:02.8]} 21... Rfd8 {[%clk 0:07:04]} 22. Re3 {[%clk 0:04:58.4]} 22... Nc5
{[%clk 0:06:51.1]} 23. Ne2 {[%clk 0:04:49.2]} 23... Qb7 {[%clk 0:06:46.3]} 24.
Ned4 {[%clk 0:03:46.8]} 24... Re8 {[%clk 0:05:43.2]} 25. Qc2 {[%clk 0:03:26]}
25... d5 {[%clk 0:04:37.4]} 26. exd5 {[%clk 0:03:21]} 26... exd5 {[%clk
0:04:38]} 27. Rxe8+ {[%clk 0:03:18.7]} 27... Rxe8 {[%clk 0:04:38.9]} 28. b4
{[%clk 0:02:01.7]} 28... Ne4 {[%clk 0:04:09.7]} 29. c5 {[%clk 0:01:43.1]} 29...
bxc5 {[%clk 0:03:57.4]} 30. bxc5 {[%clk 0:01:45]} 30... Rc8 {[%clk 0:02:58.8]}
31. c6 {[%clk 0:01:45.9]} 31... Qb4 {[%clk 0:02:27.6]} 32. Qb1 {[%clk
0:00:57.6]} 32... Bf8 {[%clk 0:01:30.5]} 33. Qxb4 {[%clk 0:00:51.8]} 33... Bxb4
{[%clk 0:01:31.3]} 34. Rb1 {[%clk 0:00:46.9]} 34... a5 {[%clk 0:01:26]} 35. Rc1
{[%clk 0:00:47.8]} 35... Bc3 {[%clk 0:01:21.6]} 36. Rb1 {[%clk 0:00:32.2]} 36...
Bb4 {[%clk 0:01:21.8]} 37. g4 {[%clk 0:00:20.6]} 37... Kf8 {[%clk 0:01:09.8]}
38. h5 {[%clk 0:00:20.7]} 38... Kg7 {[%clk 0:01:04.6]} 39. hxg6 {[%clk
0:00:18.4]} 39... fxg6 {[%clk 0:01:01.5]} 40. Rc1 {[%clk 0:00:17.7]} 40... Kf6
{[%clk 0:00:57.4]} 41. Nb5 {[%clk 0:00:16.9]} 41... Bc5 {[%clk 0:00:44.6]} 42.
c7 {[%clk 0:00:17.3]} 42... Ke6 {[%clk 0:00:35.6]} 43. Nd2 {[%clk 0:00:15.7]}
43... Ba3 {[%clk 0:00:22.2]} 44. Nxa3 {[%clk 0:00:09.5]} 44... Nxd2 {[%clk
0:00:22.4]} 45. Rc6+ {[%clk 0:00:07.3]} 45... Kd7 {[%clk 0:00:21.5]} 46. Rc5
{[%clk 0:00:06.2]} 46... Ne4 {[%clk 0:00:18.5]} 47. Rxd5+ {[%clk 0:00:05.8]}
47... Kxc7 {[%clk 0:00:19.6]} 48. Rxa5 {[%clk 0:00:06.4]} 48... Rf8 {[%clk
0:00:19]} 49. f3 {[%clk 0:00:07.3]} 49... Ng5 {[%clk 0:00:19.1]} 50. Rc5+ {[%clk
0:00:07.4]} 50... Kd6 {[%clk 0:00:18.4]} 51. Rc3 {[%clk 0:00:08.7]} 51... Ra8
{[%clk 0:00:17.7]} 52. Nb5+ {[%clk 0:00:09.7]} 52... Ke5 {[%clk 0:00:17.4]} 53.
Rc5+ {[%clk 0:00:09.1]} 53... Kf6 {[%clk 0:00:17.7]} 54. Rc6+ {[%clk 0:00:10.4]}
54... Kg7 {[%clk 0:00:17.1]} 55. Nc3 {[%clk 0:00:11.5]} 55... Nf7 {[%clk
0:00:16]} 56. f4 {[%clk 0:00:12.2]} 56... g5 {[%clk 0:00:16.3]} 57. f5 {[%clk
0:00:09.9]} 57... Ne5 {[%clk 0:00:17]} 58. Rc7+ {[%clk 0:00:11.2]} 58... Kf8
{[%clk 0:00:17.3]} 59. Kg3 {[%clk 0:00:12.6]} 59... Rb8 {[%clk 0:00:17.1]} 60.
a5 {[%clk 0:00:11.1]} 60... Ra8 {[%clk 0:00:17.8]} 61. Rc5 {[%clk 0:00:11.9]}
61... Nd3 {[%clk 0:00:18.3]} 62. Rb5 {[%clk 0:00:12.2]} 62... Rc8 {[%clk
0:00:18.1]} 63. Ne4 {[%clk 0:00:12.4]} 63... Rc4 {[%clk 0:00:18.3]} 64. Nf6
{[%clk 0:00:12.4]} 64... Rc3 {[%clk 0:00:18.5]} 65. Kg2 {[%clk 0:00:06.5]} 65...
Ra3 {[%clk 0:00:18.4]} 66. Nd7+ {[%clk 0:00:04.9]} 66... Ke7 {[%clk 0:00:18.9]}
67. Nc5 {[%clk 0:00:06.4]} 67... Nf4+ {[%clk 0:00:19.1]} 68. Kf2 {[%clk
0:00:06.9]} 68... Nh3+ {[%clk 0:00:18.4]} 69. Ke1 {[%clk 0:00:07.8]} 69... Nf4
{[%clk 0:00:18.8]} 70. Kd2 {[%clk 0:00:08.8]} 70... Kf6 {[%clk 0:00:17.7]} 71.
Ne4+ {[%clk 0:00:09.6]} 71... Ke7 {[%clk 0:00:17.8]} 72. Rb7+ {[%clk 0:00:10.8]}
72... Kf8 {[%clk 0:00:17.9]} 73. Ra7 {[%clk 0:00:11.6]} 73... Nd5 {[%clk
0:00:16.6]} 74. Nc5 {[%clk 0:00:11.8]} 74... Nb4 {[%clk 0:00:14.9]} 75. Ne6+
{[%clk 0:00:12.2]} 75... Ke8 {[%clk 0:00:14.1]} 76. f6 {[%clk 0:00:13.7]} 76...
Rd3+ {[%clk 0:00:13.3]} 77. Ke2 {[%clk 0:00:14.6]} 77... Rd7 {[%clk 0:00:13.9]}
78. Rxd7 {[%clk 0:00:14.7]} 78... Kxd7 {[%clk 0:00:15.1]} 79. f7 {[%clk
0:00:16.3]} 1-0